bitfinex/quotes_SOLUSD_20240814
["timestamp","ask_amount","ask_price","bid_price","bid_amount"]
[1723636999742,0.25098,148.23,148.16,1.4782245]
[1723637001334,30.85098,148.22,148.16,1.4782245]
[1723637001747,0.12549,148.2,148.16,1.4782245]
[1723637001918,0.25098,148.2,148.16,1.4782245]
[1723637002117,7.0090744,148.21,148.16,1.4782245]
[1723637002318,30.6,148.22,148.16,1.4782245]
[1723637002924,30.6,148.2,148.16,1.4782245]
[1723637003127,30.72549,148.22,148.16,1.4782245]
[1723637003317,7.01254508,148.23,148.16,1.4782245]
[1723637003717,33.23578258,148.27,148.16,1.4782245]
[1723637003922,7.01163429,148.26,148.18,23.0358]
[1723637004117,3.47974436,148.29,148.18,23.0358]
[1723637004315,30.6,148.23,148.18,23.0358]
[1723637011053,33.27506819,148.25,148.18,23.0358]
[1723637011238,30.6,148.25,148.18,23.0358]
[1723637011551,30.6,148.23,148.18,23.0358]
[1723637012125,0.12549,148.24,148.18,23.0358]
[1723637012341,0.37647,148.24,148.18,23.0358]
[1723637013952,12.25,148.23,148.18,23.0358]
[1723637014249,9.64334389,148.26,148.18,23.0358]
[1723637014453,12.25,148.24,148.18,23.0358]
[1723637015847,7.01171013,148.26,148.18,35.2858]
[1723637016033,7.01171013,148.26,148.2,12.25]
[1723637016240,12.25,148.28,148.21,66.9205]
[1723637016443,19.26462934,148.28,148.21,66.9205]
[1723637017356,7.01462934,148.28,148.23,23.2173]
[1723637017523,12.15635841,148.34,148.26,23.2173]
[1723637017727,12.15635841,148.34,148.27,45.0]
[1723637017941,3.47974436,148.36,148.28,0.88067937]
[1723637018152,34.06974436,148.37,148.28,0.88067937]
[1723637018357,42.74635841,148.37,148.28,0.88067937]
[1723637018555,30.59,148.37,148.28,0.88067937]
[1723637021545,7.01402264,148.38,148.29,21.2381]
[1723637021745,7.01402264,148.38,148.3,45.91273207]
[1723637022141,7.01402264,148.38,148.3,45.0]
[1723637022347,30.59,148.37,148.3,45.0]
[1723637023845,30.59,148.37,148.29,21.2381]
[1723637024638,30.59,148.33,148.29,21.2381]
[1723637024962,30.59,148.31,148.29,21.2381]
[1723637025266,30.59,148.31,148.25,22.3333]
[1723637025460,30.59,148.29,148.25,22.3333]
[1723637025761,30.59,148.27,148.25,22.3333]
[1723637027335,30.59,148.27,148.21,22.2465]
[1723637027637,30.59,148.25,148.21,22.2465]
[1723637030546,30.59,148.23,148.21,22.2465]
[1723637030862,30.59,148.23,148.21,6.4895]
[1723637036774,37.97769542,148.26,148.21,6.4895]
[1723637041677,37.60122542,148.26,148.21,6.4895]
[1723637042559,0.12549,148.25,148.17,21.8119]
[1723637042802,30.59,148.22,148.17,21.8119]
[1723637043452,7.01119121,148.23,148.17,21.8119]
[1723637045882,7.01264616,148.27,148.18,45.0]
[1723637047163,30.96647,148.26,148.17,21.8119]
[1723637047383,30.59,148.24,148.17,21.8119]
[1723637049484,0.12549,148.25,148.17,21.8119]
[1723637051459,30.59,148.24,148.17,21.8119]
[1723637052382,0.12549,148.23,148.17,21.8119]
[1723637052585,30.59,148.22,148.17,21.8119]
[1723637053565,30.59,148.24,148.17,21.8119]
[1723637054799,0.25098,148.25,148.17,21.8119]
[1723637055975,0.12549,148.25,148.17,21.8119]
[1723637056174,30.71549,148.26,148.18,46.34794321]
[1723637056398,30.71549,148.26,148.18,45.0]
[1723637056592,30.71549,148.26,148.18,46.34854223]
[1723637056996,30.71549,148.26,148.18,45.0]
[1723637057301,7.01339953,148.27,148.18,45.0]
[1723637057510,7.01339953,148.27,148.19,22.98863221]
[1723637057798,30.59,148.3,148.2,45.37647]
[1723637058681,30.59,148.3,148.2,45.12549]
[1723637060301,0.12549,148.29,148.2,45.12549]
[1723637060506,0.25098,148.29,148.2,45.0]
[1723637060704,30.59,148.28,148.19,21.641]
[1723637060897,30.59,148.26,148.19,21.641]
[1723637061208,30.71549,148.28,148.19,21.641]
[1723637062508,30.59,148.26,148.19,21.641]
[1723637062819,30.59,148.24,148.19,21.641]
[1723637066405,30.59,148.26,148.19,21.641]
[1723637068220,30.59,148.24,148.19,21.641]
[1723637069094,7.01456681,148.25,148.19,21.641]
[1723637071119,30.59,148.3,148.2,45.4149044]
[1723637071296,37.60289941,148.3,148.21,6.6568]
[1723637071499,12.15875696,148.29,148.21,6.6568]
[1723637072018,37.60289941,148.3,148.21,6.6568]
[1723637072206,12.15877362,148.29,148.21,6.6568]
[1723637072725,30.59,148.28,148.21,6.6568]
[1723637075344,30.59,148.24,148.21,6.6568]
[1723637076623,30.59,148.26,148.21,6.6568]
[1723637077824,34.19523436,148.28,148.21,6.6568]
[1723637078629,46.35505731,148.28,148.21,6.6568]
[1723637078817,30.59,148.26,148.21,6.6568]
[1723637080230,30.59,148.24,148.21,6.6568]
[1723637081314,30.59,148.26,148.21,6.6568]
[1723637081728,42.74982295,148.26,148.21,6.6568]
[1723637081921,30.59,148.26,148.21,6.6568]
[1723637082620,42.75052152,148.26,148.21,6.6568]
[1723637083142,30.59,148.26,148.21,6.6568]
[1723637084140,30.59,148.24,148.21,6.6568]
[1723637086144,12.16039694,148.25,148.21,6.6568]
[1723637086439,12.25,148.23,148.21,6.6568]
[1723637090839,27.89093509,148.26,148.21,6.6568]
[1723637091039,12.25,148.26,148.21,6.6568]
[1723637091820,10.4846633,148.27,148.21,6.6568]
[1723637092155,12.25,148.26,148.21,6.6568]
[1723637092324,7.00491894,148.27,148.21,6.6568]
[1723637092523,12.25,148.26,148.21,6.6568]
[1723637093728,7.00491894,148.27,148.21,6.6568]
[1723637094052,19.25491894,148.27,148.21,6.6568]
[1723637094722,3.47974436,148.29,148.21,6.6568]
[1723637094926,12.25,148.28,148.21,6.6568]
[1723637095246,12.25,148.29,148.22,60.5373]
[1723637096246,22.65147963,148.3,148.22,60.5373]
[1723637096550,19.26283248,148.3,148.22,60.5373]
[1723637096730,12.25,148.3,148.22,60.5373]
[1723637097130,24.40697128,148.3,148.22,60.5373]
[1723637097327,12.25,148.3,148.22,60.5373]
[1723637097874,12.25,148.3,148.22,72.7873]
[1723637098020,15.72974436,148.32,148.24,16.0397]
[1723637098221,15.72974436,148.32,148.26,6.1489]
[1723637098222,12.25,148.32,148.26,6.1489]
[1723637100356,7.00979777,148.35,148.29,6.4269]
[1723637100541,12.25,148.37,148.29,6.4269]
[1723637100745,12.25,148.37,148.3,45.0]
[1723637100746,15.72974436,148.37,148.3,45.0]
[1723637101169,12.25,148.35,148.29,6.4269]
[1723637101464,12.25,148.31,148.29,6.4269]
[1723637101890,30.61,148.31,148.29,6.4269]
[1723637102372,30.61,148.31,148.28,16.231]
[1723637102855,30.61,148.29,148.28,16.231]
[1723637103389,30.61,148.31,148.28,16.231]
[1723637105174,12.15626866,148.34,148.28,16.231]
[1723637105469,30.61,148.34,148.28,16.231]
[1723637105873,30.61,148.32,148.28,16.231]
[1723637110663,30.61,148.34,148.28,16.231]
[1723637110869,30.61,148.34,148.3,6.1921]
[1723637112066,27.77077506,148.35,148.3,6.1921]
[1723637112785,27.77077506,148.35,148.31,60.3465]
[1723637112961,30.61,148.39,148.31,60.3465]
[1723637113162,30.61,148.37,148.31,60.3465]
[1723637115160,37.61594361,148.4,148.32,6.96646]
[1723637115362,37.61594361,148.4,148.33,45.0]
[1723637115756,7.00594361,148.4,148.33,45.0]
[1723637115981,30.61,148.41,148.33,45.0]
[1723637116289,30.61,148.41,148.34,16.4096]
[1723637116463,30.61,148.41,148.35,45.0]
[1723637116885,30.61,148.41,148.36,6.2263]
[1723637117061,71.55913226,148.43,148.36,6.2263]
[1723637118163,37.365,148.43,148.37,60.55019]
[1723637118697,37.365,148.43,148.37,60.4247]
[1723637119592,6.755,148.43,148.38,6.0069]
[1723637119883,6.755,148.45,148.4,6.5135]
[1723637120093,6.755,148.45,148.41,45.0]
[1723637120574,6.755,148.46,148.41,45.0]
[1723637121175,6.755,148.46,148.42,0.12549]
[1723637121704,6.755,148.47,148.41,45.0]
[1723637121880,18.975,148.47,148.41,45.0]
[1723637122078,6.755,148.44,148.41,45.0]
[1723637122281,6.755,148.44,148.4,6.5135]
[1723637123374,6.755,148.44,148.41,45.0]
[1723637123707,18.975,148.48,148.42,15.94428]
[1723637123901,6.755,148.48,148.43,45.0]
[1723637124705,6.755,148.47,148.42,15.6933]
[1723637126006,6.755,148.46,148.42,15.6933]
[1723637126705,30.53,148.47,148.42,15.6933]
[1723637126885,15.0066,148.48,148.4,6.5135]
[1723637127082,30.53,148.41,148.4,6.5135]
[1723637127282,30.53,148.41,148.37,15.8387]
[1723637127500,0.12549,148.42,148.37,15.8387]
[1723637127501,0.25098,148.42,148.37,15.8387]
[1723637127698,30.53,148.38,148.37,12.70753133]
[1723637127916,30.53,148.38,148.36,6.0212]
[1723637128279,0.12549,148.41,148.24,0.52269564]
[1723637128606,30.53,148.37,148.24,30.53]
[1723637128773,0.12549,148.36,148.23,8.90027436]
[1723637128975,0.12549,148.36,148.2,30.53]
[1723637129177,0.12549,148.36,148.19,1.17382399]
[1723637129178,30.53,148.31,148.19,1.17382399]
[1723637130393,30.53,148.29,148.18,8.90027436]
[1723637130586,30.53,148.29,148.19,16.1995]
[1723637131201,0.12549,148.34,148.19,16.1995]
[1723637131515,30.53,148.29,148.2,6.4701]
[1723637131685,30.53,148.29,148.21,20.0]
[1723637132944,30.53,148.29,148.22,0.12549]
[1723637133412,30.53,148.31,148.22,45.25098]
[1723637133616,16.6061,148.4,148.24,0.12549]
[1723637133802,30.53,148.32,148.24,0.25098]
[1723637134109,30.53,148.32,148.25,0.25098]
[1723637135105,30.53,148.34,148.26,22.37849]
[1723637135301,30.53,148.34,148.27,45.0]
[1723637136800,30.53,148.34,148.28,0.12549]
[1723637137317,30.53,148.34,148.28,0.25098]
[1723637137716,30.53,148.34,148.27,45.0]
[1723637138296,6.99658667,148.37,148.27,45.0]
[1723637138497,30.53,148.34,148.28,0.12549]
[1723637138724,30.53,148.34,148.28,0.37647]
[1723637141606,30.53,148.36,148.29,0.12549]
[1723637141798,30.53,148.36,148.29,0.37647]
[1723637142712,30.53,148.36,148.3,0.12549]
[1723637143498,30.53,148.36,148.28,0.12549]
[1723637143706,30.53,148.36,148.28,0.50196]
[1723637144937,6.99413705,148.39,148.28,0.50196]
[1723637145147,30.53,148.4,148.29,22.4738]
[1723637145434,30.53,148.4,148.3,45.50196]
[1723637145629,37.51881965,148.42,148.3,96.03196]
[1723637146018,30.53,148.4,148.3,65.50196]
[1723637148743,6.98881965,148.42,148.3,65.50196]
[1723637148911,30.53,148.41,148.3,65.50196]
[1723637152646,30.53,148.41,148.31,21.71]
[1723637152847,30.53,148.41,148.32,45.50196]
[1723637155420,6.98881965,148.42,148.32,45.50196]
[1723637155621,30.53,148.41,148.32,45.50196]
[1723637158554,30.53,148.41,148.33,0.60376746]
[1723637158765,258.9,148.48,148.37,16.5892]
[1723637158991,30.53,148.47,148.38,46.10567683]
[1723637159129,30.53,148.47,148.38,45.50196]
[1723637160329,381.7,148.49,148.38,45.50196]
[1723637160560,381.7,148.49,148.39,6.2519]
[1723637160853,37.51444059,148.48,148.4,45.12549]
[1723637161059,30.53,148.48,148.4,45.12549]
[1723637161229,15.0081,148.52,148.41,0.25098]
[1723637161436,30.53,148.5,148.42,16.76279]
[1723637161663,30.53,148.5,148.43,45.0]
[1723637161866,30.53,148.5,148.42,16.6373]
[1723637162046,30.53,148.5,148.43,45.0]
[1723637163331,30.53,148.5,148.44,6.2436]
[1723637163859,30.53,148.5,148.45,45.0]
[1723637165049,30.53,148.48,148.44,6.2436]
[1723637165256,30.53,148.46,148.44,6.2436]
[1723637165470,30.53,148.46,148.42,16.6373]
[1723637165635,30.53,148.44,148.42,16.6373]
[1723637166260,30.53,148.44,148.4,6.2546]
[1723637167368,15.2631,148.5,148.4,6.2546]
[1723637167369,30.53,148.46,148.4,6.2546]
[1723637167666,30.53,148.46,148.41,45.0]
[1723637168864,30.53,148.49,148.41,45.0]
[1723637169072,30.53,148.51,148.43,15.482]
[1723637169273,30.53,148.51,148.44,45.12549]
[1723637169642,30.53,148.51,148.44,45.0]
[1723637171282,30.53,148.5,148.43,15.482]
[1723637173769,30.53,148.5,148.44,45.0]
[1723637174367,30.53,148.5,148.45,0.12549]
[1723637174857,30.53,148.52,148.45,0.12549]
[1723637176442,6.98890165,148.54,148.46,6.6665]
[1723637176647,37.51890165,148.54,148.47,46.34607723]
[1723637177668,30.53,148.54,148.48,15.2769]
[1723637178042,30.53,148.52,148.48,15.2769]
[1723637180780,30.53,148.5,148.46,6.6665]
[1723637181277,30.53,148.48,148.44,15.2647]
[1723637181469,30.53,148.46,148.44,15.2647]
[1723637182900,30.53,148.48,148.44,15.2647]
[1723637186295,30.53,148.5,148.44,15.2647]
[1723637186587,30.53,148.51,148.44,15.2647]
[1723637186798,30.53,148.51,148.45,45.0]
[1723637187394,30.53,148.49,148.44,15.2647]
[1723637187702,7.00015652,148.56,148.45,0.12549]
[1723637187859,30.53,148.53,148.45,45.37647]
[1723637189998,30.53,148.51,148.45,45.12549]
[1723637190389,0.12549,148.55,148.45,45.12549]
[1723637190595,30.53,148.52,148.45,45.12549]
[1723637190985,30.53,148.48,148.44,15.2647]
[1723637191512,30.53,148.46,148.44,15.2647]
[1723637191894,30.53,148.48,148.44,15.2647]
[1723637192080,30.53,148.5,148.44,15.2647]
[1723637192423,30.53,148.52,148.44,15.2647]
[1723637192777,30.53,148.52,148.45,45.37647]
[1723637196483,30.53,148.52,148.45,45.0]
[1723637196895,30.53,148.5,148.45,45.0]
[1723637197499,30.53,148.52,148.45,45.0]
[1723637198094,30.53,148.52,148.46,0.12549]
[1723637202179,37.53010443,148.54,148.47,6.634]
[1723637202384,30.53,148.56,148.49,15.8708]
[1723637202811,30.53,148.56,148.5,45.0]
[1723637203183,37.53240727,148.58,148.5,45.0]
[1723637203385,7.00240727,148.58,148.52,6.6224]
[1723637203610,30.53,148.6,148.53,46.34576686]
[1723637203811,6.99941298,148.63,148.54,15.9613]
[1723637204015,30.53,148.62,148.55,45.0]
[1723637205291,0.8445855,148.68,148.56,23.00366]
[1723637205492,30.53,148.67,148.56,23.00366]
[1723637205692,30.53,148.67,148.58,0.12549]
[1723637205896,30.53,148.67,148.58,0.25098]
[1723637206091,30.53,148.67,148.59,0.25098]
[1723637206292,30.53,148.67,148.6,0.25098]
[1723637206496,30.53,148.67,148.59,0.12549]
[1723637206693,30.53,148.65,148.58,0.25098]
[1723637206994,30.53,148.65,148.59,0.25098]
[1723637207193,0.8445855,148.68,148.59,0.7938507]
[1723637207194,30.53,148.67,148.59,0.7938507]
[1723637207394,30.53,148.67,148.6,0.25098]
[1723637207886,0.8445855,148.68,148.62,16.4437]
[1723637208083,0.8445855,148.68,148.63,45.0]
[1723637208313,0.8445855,148.68,148.64,0.25098]
[1723637208693,0.8445855,148.68,148.65,0.25098]
[1723637209403,0.8445855,148.68,148.66,0.12549]
[1723637209702,0.8445855,148.68,148.66,0.25098]
[1723637210412,0.8445855,148.68,148.67,22.76027]
[1723637210610,30.53,148.76,148.68,0.12549]
[1723637210808,30.53,148.76,148.68,45.50196]
[1723637211907,38.03,148.77,148.68,45.3370651]
[1723637212720,38.03,148.79,148.68,45.3370651]
[1723637214120,45.0331724,148.81,148.7,21.901]
[1723637214291,45.0331724,148.81,148.72,0.12549]
[1723637214625,45.0331724,148.81,148.72,21.46968946]
[1723637214814,45.0331724,148.81,148.74,0.12549]
[1723637215016,38.8745855,148.83,148.74,1.72048871]
[1723637215334,0.8445855,148.83,148.76,22.8659]
[1723637215510,0.8445855,148.83,148.77,45.12549]
[1723637215896,38.03,148.81,148.76,22.8659]
[1723637216096,38.03,148.79,148.76,22.8659]
[1723637217018,38.03,148.77,148.72,22.6739]
[1723637217198,38.03,148.74,148.68,22.6739]
[1723637218832,38.03,148.7,148.64,21.7233]
[1723637219135,38.03,148.68,148.64,6.266]
[1723637219527,38.03,148.66,148.6,6.1863]
[1723637220520,0.12549,148.73,148.6,6.1863]
[1723637220521,38.03,148.68,148.6,6.1863]
[1723637222710,38.03,148.68,148.61,0.25098]
[1723637222918,38.03,148.68,148.61,45.37647]
[1723637223342,38.03,148.68,148.61,45.25098]
[1723637223946,0.12549,148.73,148.61,45.25098]
[1723637224111,38.03,148.69,148.61,45.25098]
[1723637226145,0.37647,148.73,148.62,1.47192893]
[1723637226146,7.00946846,148.72,148.62,1.47192893]
[1723637226440,38.03,148.73,148.64,0.12549]
[1723637226637,38.03,148.73,148.64,0.25098]
[1723637226959,38.03,148.75,148.66,0.12549]
[1723637227252,45.04001053,148.77,148.68,0.12549]
[1723637227409,45.04001053,148.77,148.68,45.50196]
[1723637227606,38.03,148.79,148.68,45.50196]
[1723637228226,38.03,148.79,148.7,0.12549]
[1723637228427,38.03,148.79,148.7,45.50196]
[1723637228636,265.9084139,148.82,148.7,45.50196]
[1723637228825,38.03,148.78,148.7,45.50196]
[1723637229408,38.03,148.81,148.7,45.50196]
[1723637229609,38.03,148.81,148.72,0.12549]
[1723637229821,38.03,148.81,148.72,45.50196]
[1723637234347,38.03,148.79,148.72,45.50196]
[1723637235640,38.03,148.79,148.72,45.37647]
[1723637235861,38.03,148.79,148.72,45.12549]
[1723637237344,38.03,148.77,148.72,45.0]
[1723637238151,38.03,148.77,148.73,0.12549]
[1723637238542,38.03,148.77,148.72,45.0]
[1723637238866,38.03,148.77,148.73,0.12549]
[1723637239638,38.03,148.77,148.72,45.0]
[1723637240565,38.03,148.77,148.73,0.12549]
[1723637241359,38.03,148.79,148.73,0.25098]
[1723637241965,30.41,148.78,148.73,0.12549]
[1723637242174,30.41,148.76,148.72,45.0]
[1723637242466,30.41,148.75,148.72,45.0]
[1723637242669,30.41,148.75,148.67,22.5799]
[1723637242839,30.41,148.75,148.68,65.12549]
[1723637243034,30.41,148.75,148.68,20.12549]
[1723637243269,30.41,148.75,148.68,20.0]
[1723637243641,30.41,148.75,148.69,0.25098]
[1723637244645,30.41,148.75,148.7,0.12549]
[1723637245274,30.41,148.75,148.69,45.12549]
[1723637246072,30.41,148.73,148.69,45.0]
[1723637246386,30.41,148.73,148.67,22.5799]
[1723637246387,30.41,148.71,148.67,22.5799]
[1723637246543,30.41,148.71,148.56,20.0]
[1723637246544,0.12549,148.78,148.64,6.1731]
[1723637246755,30.41,148.68,148.64,6.1731]
[1723637246982,30.41,148.66,148.64,6.1731]
[1723637247967,38.08,148.66,148.64,6.1731]
[1723637248470,38.08,148.68,148.64,6.1731]
[1723637250159,38.08,148.68,148.65,45.0]
[1723637251184,38.08,148.71,148.65,45.0]
[1723637254583,38.08,148.73,148.66,0.12549]
[1723637254745,38.08,148.73,148.66,0.37647]
[1723637256269,45.09570266,148.75,148.67,0.12549]
[1723637256443,45.09570266,148.75,148.67,0.37647]
[1723637256782,38.08,148.75,148.68,0.12549]
[1723637256992,38.08,148.75,148.68,0.37647]
[1723637257768,38.08,148.75,148.69,15.6408]
[1723637257973,38.08,148.75,148.7,45.0]
[1723637258174,9.69413821,148.79,148.7,45.0]
[1723637258175,38.08,148.77,148.71,6.21549]
[1723637258477,38.08,148.79,148.72,45.0]
[1723637259074,38.08,148.79,148.73,0.12549]
[1723637259695,38.08,148.79,148.72,45.0]
[1723637261905,38.08,148.79,148.73,0.37647]
[1723637262275,38.08,148.81,148.73,0.37647]
[1723637263393,38.08,148.81,148.74,0.12549]
[1723637263900,7.86031875,148.83,148.76,6.35589]
[1723637263901,0.8445855,148.83,148.76,6.35589]
[1723637264110,0.8445855,148.83,148.77,46.71918617]
[1723637264277,0.8445855,148.83,148.78,0.12549]
[1723637265593,0.8445855,148.83,148.77,45.37647]
[1723637266100,38.9245855,148.83,148.76,6.2304]
[1723637267807,38.08,148.79,148.76,6.2304]
[1723637268008,38.08,148.79,148.75,16.4093]
[1723637269902,30.41,148.79,148.75,16.4093]
[1723637270410,30.41,148.79,148.76,45.0]
[1723637270786,30.41,148.81,148.76,45.0]
[1723637278301,0.8445855,148.83,148.76,45.0]
[1723637278499,30.41,148.81,148.76,45.0]
[1723637280397,30.41,148.79,148.75,16.4093]
[1723637283620,30.41,148.79,148.76,45.0]
[1723637283820,30.41,148.82,148.76,45.0]
[1723637284294,30.41,148.82,148.76,45.72539119]
[1723637284489,30.41,148.82,148.76,45.0]
[1723637285196,30.41,148.82,148.76,45.72500108]
[1723637285397,30.41,148.82,148.76,45.0]
[1723637285813,30.41,148.82,148.77,0.72948068]
[1723637286720,30.41,148.82,148.76,45.0]
[1723637287103,30.41,148.82,148.77,0.72908878]
[1723637288500,30.41,148.82,148.76,45.12549]
[1723637288700,30.41,148.82,148.77,0.12549]
[1723637290221,30.41,148.82,148.77,1.71995097]
[1723637291302,0.8445855,148.83,148.78,6.146]
[1723637291626,0.8445855,148.83,148.8,15.6308]
[1723637291811,0.8445855,148.83,148.81,46.72007518]
[1723637292124,0.8445855,148.83,148.8,15.6308]
[1723637292609,30.41,148.82,148.78,6.146]
[1723637293714,0.8445855,148.83,148.78,6.146]
[1723637294034,0.8445855,148.83,148.79,45.0]
[1723637294214,0.8445855,148.83,148.8,1.34350035]
[1723637294624,0.8445855,148.83,148.79,45.12549]
[1723637294820,0.8445855,148.83,148.8,0.25098]
[1723637296611,0.8445855,148.83,148.81,15.8293]
[1723637296843,0.8445855,148.83,148.82,45.0]
[1723637300615,0.8445855,148.83,148.78,6.146]
[1723637300943,30.41,148.82,148.77,15.8293]
[1723637302326,0.8445855,148.83,148.77,15.8293]
[1723637302724,0.8445855,148.83,148.78,0.12549]
[1723637302914,0.8445855,148.83,148.78,45.12549]
[1723637303521,0.8445855,148.83,148.79,0.12549]
[1723637304652,0.8445855,148.83,148.79,0.25098]
[1723637304821,0.8445855,148.83,148.8,0.12549]
[1723637306551,0.8445855,148.83,148.78,45.0]
[1723637309340,0.8445855,148.83,148.77,15.95479]
[1723637309646,30.41,148.82,148.77,15.8293]
[1723637309842,30.41,148.8,148.74,6.5327]
[1723637313221,0.8445855,148.83,148.74,6.5327]
[1723637313222,30.41,148.82,148.75,0.25098]
[1723637313423,30.41,148.82,148.75,45.37647]
[1723637314858,30.41,148.82,148.75,45.12549]
[1723637315448,30.41,148.8,148.75,45.0]
[1723637315663,30.41,148.8,148.74,6.5327]
[1723637316149,30.41,148.82,148.75,0.12549]
[1723637316328,30.41,148.82,148.75,45.25098]
[1723637317983,30.41,148.82,148.76,0.12549]
[1723637318284,0.8445855,148.83,148.76,0.37647]
[1723637318579,0.8445855,148.83,148.77,0.12549]
[1723637318759,0.8445855,148.83,148.77,0.25098]
[1723637319768,0.8445855,148.83,148.75,45.0]
[1723637319952,0.8445855,148.83,148.76,0.25098]
[1723637320975,0.8445855,148.83,148.77,0.25098]
[1723637321148,0.8445855,148.83,148.78,0.25098]
[1723637322162,0.8445855,148.83,148.79,16.40148]
[1723637322454,0.8445855,148.83,148.8,45.25098]
[1723637323467,0.8445855,148.83,148.8,51.30108]
[1723637323979,0.8445855,148.83,148.81,0.12549]
[1723637324690,0.8445855,148.83,148.8,51.30108]
[1723637324865,0.8445855,148.83,148.74,22.6265]
[1723637325059,30.41,148.81,148.74,22.6265]
[1723637326179,30.41,148.79,148.74,22.6265]
[1723637327655,30.41,148.77,148.68,22.0083]
[1723637328364,0.12549,148.81,148.68,22.0083]
[1723637328365,30.41,148.75,148.68,22.0083]
[1723637330082,30.41,148.75,148.69,20.0]
[1723637333671,30.41,148.71,148.64,23.47665692]
[1723637333874,30.41,148.71,148.64,22.3051]
[1723637334089,30.41,148.69,148.64,22.3051]
[1723637336302,30.41,148.71,148.65,45.0]
[1723637336507,7.01899637,148.73,148.66,0.25098]
[1723637336800,30.41,148.75,148.67,0.37647]
[1723637337299,30.41,148.75,148.68,0.12549]
[1723637339696,30.41,148.73,148.66,20.0]
[1723637340015,30.41,148.71,148.64,22.3051]
[1723637340170,30.41,148.69,148.64,22.3051]
[1723637340369,30.41,148.69,148.64,15.6853]
[1723637340570,30.41,148.67,148.6,21.9622]
[1723637340808,15.9552,148.72,148.6,21.9622]
[1723637340809,30.41,148.65,148.6,21.9622]
[1723637341014,30.41,148.67,148.6,21.9622]
[1723637341910,38.08,148.67,148.6,21.9622]
[1723637342683,38.08,148.65,148.6,21.9622]
[1723637342884,38.08,148.65,148.56,21.5981]
[1723637343107,38.08,148.63,148.56,21.5981]
[1723637343774,38.08,148.61,148.52,21.8447]
[1723637344072,38.08,148.59,148.52,21.8447]
[1723637344280,0.12549,148.63,148.52,21.8447]
[1723637344592,38.08,148.62,148.52,21.8447]
[1723637345288,38.08,148.62,148.53,20.0]
[1723637345506,38.08,148.58,148.52,21.8447]
[1723637346292,38.20549,148.61,148.52,21.8447]
[1723637346293,38.08,148.61,148.52,21.8447]
[1723637347178,0.12549,148.6,148.52,21.8447]
[1723637347390,38.08,148.57,148.52,21.8447]
[1723637348209,38.08,148.59,148.52,21.8447]
[1723637349200,38.08,148.61,148.53,0.25098]
[1723637349383,38.08,148.61,148.53,45.25098]
[1723637349586,38.08,148.61,148.53,45.12549]
[1723637349795,38.08,148.61,148.52,21.8447]
[1723637351286,38.08,148.59,148.52,21.8447]
[1723637351896,38.08,148.57,148.48,22.5498]
[1723637353422,38.08,148.57,148.49,20.0]
[1723637353909,38.08,148.57,148.5,45.0]
[1723637355704,38.08,148.57,148.49,20.0]
[1723637357702,38.08,148.57,148.5,45.0]